bitfinex/quotes_BTCUSD_20241022
["timestamp","ask_amount","ask_price","bid_price","bid_amount"]
[1729619160974,0.01404883,67355.0,67353.0,0.14847]
[1729619164457,0.14895915,67354.0,67353.0,0.14847]
[1729619164951,0.01404883,67355.0,67353.0,0.14847]
[1729619165395,0.00404883,67355.0,67354.0,0.148469]
[1729619165585,0.00404883,67355.0,67345.0,0.02324007]
[1729619165809,0.00404883,67355.0,67350.0,0.148477]
[1729619166400,0.15300798,67355.0,67346.0,0.296973]
[1729619166595,0.15300798,67355.0,67350.0,0.148477]
[1729619167226,0.15300798,67355.0,67349.0,0.148479]
[1729619167396,0.15300798,67355.0,67348.0,0.148481]
[1729619167758,0.15300798,67355.0,67346.0,0.296973]
[1729619167759,0.15300798,67355.0,67349.0,0.148479]
[1729619168094,0.15300798,67355.0,67345.0,0.02324007]
[1729619168298,0.14895915,67354.0,67349.0,0.14848]
[1729619169387,0.15300798,67355.0,67349.0,0.14848]
[1729619169990,0.15300798,67355.0,67343.0,0.22361542]
[1729619170203,0.15300798,67355.0,67347.0,0.296969]
[1729619170474,0.15300798,67355.0,67349.0,0.148479]
[1729619170895,0.15300798,67355.0,67350.0,0.148478]
[1729619171096,0.15383398,67355.0,67349.0,0.148479]
[1729619171301,0.15383398,67355.0,67350.0,0.148477]
[1729619171913,0.00487483,67355.0,67350.0,0.148477]
[1729619173232,0.00487483,67355.0,67348.0,0.148481]
[1729619173407,0.00487483,67355.0,67350.0,0.148477]
[1729619173832,0.00487483,67355.0,67344.0,0.14895915]
[1729619174072,0.1771,67344.0,67343.0,0.22266425]
[1729619174309,0.1771,67344.0,67330.0,0.00260317]
[1729619174310,0.1771,67344.0,67336.0,0.37117225]
[1729619174539,0.1771,67344.0,67343.0,0.22266425]
[1729619174745,0.1771,67344.0,67337.0,0.148506]
[1729619175194,0.1771,67344.0,67343.0,0.22266425]
[1729619175432,0.00404883,67347.0,67336.0,0.22266425]
[1729619175664,0.00404883,67347.0,67345.0,0.148487]
[1729619175877,0.0833,67351.0,67347.0,0.148482]
[1729619175878,0.00404883,67350.0,67347.0,0.148482]
[1729619176094,0.0833,67351.0,67337.0,0.14895915]
[1729619176308,0.0833,67351.0,67350.0,0.148478]
[1729619176528,0.000826,67355.0,67354.0,0.148469]
[1729619177398,0.000826,67355.0,67350.0,0.296952]
[1729619177621,0.000826,67355.0,67352.0,0.296947]
[1729619177828,0.000826,67355.0,67354.0,0.148469]
[1729619178888,0.000826,67355.0,67352.0,0.296947]
[1729619178889,0.000826,67355.0,67352.0,0.148472]
[1729619179763,0.000826,67355.0,67350.0,0.296952]
[1729619179764,0.000826,67355.0,67351.0,0.148475]
[1729619179979,0.000826,67355.0,67352.0,0.148472]
[1729619180186,0.000826,67355.0,67353.0,0.14847]
[1729619180607,0.000826,67355.0,67351.0,0.296948]
[1729619180608,0.000826,67355.0,67354.0,0.148469]
[1729619181507,0.000826,67355.0,67349.0,0.59392]
[1729619181742,0.000826,67355.0,67350.0,0.22266425]
[1729619181945,0.000826,67355.0,67352.0,0.148471]
[1729619182162,0.000826,67355.0,67353.0,0.14847]
[1729619182374,0.000826,67355.0,67350.0,0.445434]
[1729619182600,0.000826,67355.0,67350.0,0.148477]
[1729619182837,0.000826,67355.0,67352.0,0.148473]
[1729619183677,0.000826,67355.0,67351.0,0.29695]
[1729619183915,0.000826,67355.0,67353.0,0.14847]
[1729619184133,0.000826,67355.0,67345.0,0.00095117]
[1729619184337,0.000826,67355.0,67353.0,0.148471]
[1729619185243,0.000826,67355.0,67354.0,0.148469]
[1729619185872,0.000826,67355.0,67354.0,0.46695871]
[1729619186105,0.001826,67355.0,67354.0,0.46695871]
[1729619186369,0.000826,67355.0,67354.0,0.46695871]
[1729619186606,0.000826,67355.0,67354.0,0.29742815]
[1729619191162,3.000826,67355.0,67354.0,0.29742815]
[1729619196365,3.000826,67355.0,67354.0,0.29837932]
[1729619196576,3.000826,67355.0,67354.0,0.38007932]
[1729619196803,3.000826,67355.0,67354.0,0.29837932]
[1729619208079,3.000826,67355.0,67354.0,0.29742815]
[1729619208292,3.000826,67355.0,67354.0,0.148469]
[1729619216021,3.000826,67355.0,67354.0,0.14734686]
[1729619220542,3.181726,67355.0,67354.0,0.14734686]
[1729619220756,3.181726,67355.0,67344.0,0.22266425]
[1729619220757,0.0976,67350.0,67344.0,0.22266425]
[1729619221000,0.0976,67350.0,67349.0,0.14848]
[1729619223208,3.000826,67355.0,67354.0,0.148469]
[1729619223418,3.000826,67355.0,67354.0,0.56790988]
[1729619223661,3.000826,67355.0,67354.0,0.57290988]
[1729619223867,3.000826,67355.0,67354.0,0.61682888]
[1729619224543,3.000826,67355.0,67354.0,0.58490988]
[1729619224758,3.000826,67355.0,67354.0,0.58290988]
[1729619225676,2.882054,67355.0,67354.0,0.86519309]
[1729619225896,0.000826,67357.0,67356.0,0.26441517]
[1729619226122,0.000826,67357.0,67356.0,0.43637432]
[1729619226517,0.000826,67357.0,67356.0,0.48025045]
[1729619226776,3.45971524,67358.0,67357.0,0.28741317]
[1729619226983,3.45971524,67358.0,67357.0,0.43637232]
[1729619227630,3.43002324,67358.0,67357.0,0.43637232]
[1729619228264,3.43002324,67358.0,67357.0,0.43137232]
[1729619228500,3.43002324,67358.0,67357.0,0.60590288]
[1729619228743,3.43002324,67358.0,67357.0,0.60790288]
[1729619229188,3.43002324,67358.0,67357.0,0.60590288]
[1729619230079,3.43002324,67358.0,67357.0,0.56790288]
[1729619230335,3.43002324,67358.0,67357.0,0.39837232]
[1729619230622,3.43002324,67358.0,67357.0,0.40337232]
[1729619233661,3.43002324,67358.0,67357.0,0.39837232]
[1729619245350,3.43002324,67358.0,67357.0,0.148462]
[1729619245351,3.60612324,67358.0,67357.0,0.148462]
[1729619252531,0.1755,67356.0,67353.0,0.148469]
[1729619252750,0.1755,67356.0,67350.0,0.296956]
[1729619252751,0.0798,67353.0,67352.0,0.296947]
[1729619252960,0.0798,67353.0,67352.0,0.148473]
[1729619253411,0.0957,67352.0,67351.0,0.02323908]
[1729619253661,0.1755,67352.0,67351.0,0.02323908]
[1729619253919,0.1755,67352.0,67350.0,0.148477]
[1729619254131,0.16953056,67351.0,67350.0,0.148478]
[1729619254376,0.34183056,67351.0,67350.0,0.148478]
[1729619255080,0.1723,67351.0,67350.0,0.148478]
[1729619255534,0.1723,67351.0,67349.0,0.001652]
[1729619256443,0.1723,67351.0,67350.0,0.148478]
[1729619258376,0.1723,67351.0,67349.0,0.150131]
[1729619258590,0.1723,67351.0,67350.0,0.148478]
[1729619260277,0.1723,67351.0,67349.0,0.001652]
[1729619260701,0.1723,67351.0,67350.0,0.148478]
[1729619261345,0.1723,67351.0,67349.0,0.001652]
[1729619261553,0.1723,67351.0,67350.0,0.148478]
[1729619261825,0.1723,67351.0,67349.0,0.001652]
[1729619262035,0.16953056,67352.0,67349.0,0.001652]
[1729619262036,0.1758,67350.0,67349.0,0.001652]
[1729619262680,0.33832683,67350.0,67349.0,0.001652]
[1729619262907,0.18984883,67350.0,67349.0,0.001652]
[1729619264424,0.18967015,67350.0,67349.0,0.001652]
[1729619264678,0.17562132,67350.0,67349.0,0.001652]
[1729619266912,0.17562132,67350.0,67349.0,0.150132]
[1729619267119,0.17562132,67350.0,67349.0,0.001652]
[1729619267836,0.17967015,67350.0,67349.0,0.001652]
[1729619269410,0.17562132,67350.0,67349.0,0.001652]
[1729619270249,0.17662132,67350.0,67349.0,0.001652]
[1729619271713,0.17662132,67350.0,67349.0,0.150132]
[1729619272337,0.17662132,67350.0,67349.0,0.001652]
[1729619275705,0.17662132,67350.0,67349.0,0.150132]
[1729619275947,0.17662132,67350.0,67349.0,0.29909115]
[1729619275948,0.001,67350.0,67349.0,0.29909115]
[1729619276643,0.0775,67356.0,67355.0,0.148467]
[1729619279282,0.078326,67356.0,67355.0,0.148467]
[1729619279969,0.078326,67356.0,67354.0,0.296937]
[1729619279970,0.078326,67356.0,67354.0,0.296938]
[1729619280233,0.078326,67356.0,67355.0,0.148467]
[1729619282872,0.078326,67356.0,67355.0,0.148467]
[1729619283694,0.078326,67356.0,67354.0,0.148468]
[1729619284314,0.078326,67356.0,67355.0,0.148467]
[1729619287282,0.078326,67356.0,67354.0,0.148468]
[1729619287949,0.078326,67356.0,67355.0,0.148467]
[1729619293646,0.078326,67356.0,67355.0,0.40581181]
[1729619293647,0.000826,67356.0,67355.0,0.40581181]
[1729619293856,0.000826,67356.0,67355.0,0.29837732]
[1729619294281,0.000826,67356.0,67355.0,0.50676298]
[1729619294487,0.000826,67356.0,67355.0,0.39837732]
[1729619297392,0.100826,67356.0,67355.0,0.39837732]
[1729619299801,0.100826,67356.0,67355.0,0.39742615]
[1729619299983,0.38081166,67356.0,67355.0,0.148467]
[1729619300420,0.4418444,67356.0,67355.0,0.148467]
[1729619301741,0.272426,67356.0,67355.0,0.148467]
[1729619301964,0.100826,67356.0,67355.0,0.29742615]
[1729619302417,0.100826,67356.0,67355.0,0.39837732]
[1729619307242,0.100826,67356.0,67355.0,0.148467]
[1729619307448,0.4445444,67356.0,67355.0,0.148467]
[1729619307825,0.275126,67356.0,67355.0,0.148467]
[1729619308256,0.275126,67356.0,67355.0,0.14941817]
[1729619314874,0.100826,67356.0,67355.0,0.29837732]
[1729619334363,0.0944,67355.0,67350.0,0.001652]
[1729619334577,0.0819,67354.0,67353.0,0.148471]
[1729619335480,0.100826,67356.0,67353.0,0.29789217]
[1729619335700,0.100826,67356.0,67355.0,0.148467]
[1729619335907,0.100826,67356.0,67355.0,0.29742615]
[1729619337090,0.100826,67356.0,67355.0,0.29837732]
[1729619337541,0.100826,67356.0,67355.0,0.29742615]
[1729619337776,0.100826,67356.0,67355.0,0.29837732]
[1729619338505,0.179626,67356.0,67355.0,0.148467]
[1729619344361,0.179626,67356.0,67354.0,0.296938]
[1729619344634,0.179626,67356.0,67337.0,0.02323728]
[1729619344635,0.148504,67338.0,67337.0,0.02323728]
[1729619344840,0.51049881,67338.0,67337.0,0.02323728]
[1729619345078,0.51049881,67338.0,67333.0,0.001652]
[1729619345079,0.16256183,67334.0,67333.0,0.001652]
[1729619345357,5.08409781,67334.0,67333.0,0.001652]
[1729619345595,5.42646452,67334.0,67333.0,0.001652]
[1729619346159,5.38201611,67334.0,67333.0,0.001652]
[1729619346362,5.38201611,67334.0,67333.0,0.002652]
[1729619346363,5.39301611,67334.0,67333.0,0.002652]
[1729619347825,5.39501611,67334.0,67333.0,0.002652]
[1729619348083,5.40401611,67334.0,67333.0,0.003652]
[1729619348346,5.40401611,67334.0,67307.0,0.00168]
[1729619348347,0.005,67317.0,67307.0,0.00168]
[1729619348600,0.16934598,67312.0,67307.0,0.00168]
[1729619349370,0.17839481,67316.0,67307.0,0.00168]
[1729619349630,0.17839481,67316.0,67309.0,0.148567]
[1729619349882,0.17839481,67316.0,67307.0,0.298825]
[1729619349883,0.00904883,67316.0,67307.0,0.00168]
[1729619350124,0.003,67312.0,67307.0,0.00168]
[1729619350374,0.003,67312.0,67309.0,0.148567]
[1729619350652,0.16934598,67315.0,67309.0,0.148567]
[1729619350889,0.16934598,67315.0,67310.0,0.148565]
[1729619351121,0.16934598,67315.0,67309.0,1.2441]
[1729619351352,0.16934598,67315.0,67309.0,1.392667]
[1729619351590,0.16934598,67315.0,67311.0,0.148563]
[1729619352364,0.16934598,67315.0,67310.0,0.001]
[1729619352602,0.16934598,67315.0,67309.0,1.689803]
[1729619353102,0.16934598,67315.0,67311.0,0.001]
[1729619353372,0.16934598,67315.0,67310.0,1.392665]
[1729619353588,0.16934598,67315.0,67310.0,1.393665]
[1729619354307,0.16934598,67315.0,67310.0,0.001]
[1729619354571,0.22752189,67315.0,67310.0,0.001]
[1729619354810,0.22752189,67315.0,67311.0,0.001]
[1729619355290,0.22752189,67315.0,67310.0,1.2441]
[1729619355781,0.22752189,67315.0,67310.0,1.392665]
[1729619356510,0.001,67311.0,67310.0,1.392665]
[1729619357043,0.001,67311.0,67310.0,0.148565]
[1729619357520,0.001,67311.0,67310.0,1.2441]
[1729619357986,0.001,67311.0,67309.0,1.392667]
[1729619358240,0.001,67311.0,67309.0,1.2441]
[1729619358495,0.001,67311.0,67310.0,0.001]
[1729619358981,0.001,67311.0,67310.0,0.002]
[1729619359247,0.001,67311.0,67310.0,0.001]
[1729619359496,0.001,67311.0,67309.0,1.393668]
[1729619359732,0.001,67311.0,67309.0,1.394668]
[1729619359981,0.001,67311.0,67310.0,0.150218]
[1729619360227,0.001,67311.0,67310.0,0.002652]
[1729619360468,0.001,67311.0,67310.0,0.003652]
[1729619361167,0.001,67311.0,67310.0,1.27100577]
[1729619361365,0.17034598,67311.0,67310.0,1.27000577]
[1729619361609,0.17034598,67311.0,67310.0,1.26900577]
[1729619362071,0.17034598,67311.0,67310.0,0.02490577]
[1729619362586,0.17034598,67311.0,67310.0,0.02590577]
[1729619363063,0.35918546,67311.0,67310.0,1.27000577]
[1729619363301,0.35918546,67311.0,67310.0,1.27100577]
[1729619363545,0.34174598,67311.0,67310.0,1.27100577]
[1729619364023,0.1724,67311.0,67310.0,1.27100577]
[1729619364509,0.1724,67311.0,67310.0,1.41957177]
[1729619365261,0.1724,67311.0,67310.0,1.27100577]
[1729619366002,0.1724,67311.0,67310.0,1.41957177]
[1729619366255,0.1724,67311.0,67310.0,1.27100577]
[1729619366501,0.1724,67311.0,67310.0,0.02690577]
[1729619366944,0.1724,67311.0,67310.0,1.27100577]
[1729619367692,0.1724,67311.0,67310.0,1.27000577]
[1729619367921,0.1724,67311.0,67310.0,1.27100577]
[1729619368394,0.1724,67311.0,67310.0,1.26900577]
[1729619368619,0.38132546,67311.0,67310.0,1.27100577]
[1729619368868,0.38132546,67311.0,67310.0,1.27000577]
[1729619369068,0.53893829,67311.0,67310.0,0.02490577]
[1729619369303,0.39037429,67311.0,67310.0,0.02490577]
[1729619369816,0.35579481,67311.0,67310.0,0.02490577]
[1729619371034,0.36179481,67311.0,67310.0,0.02490577]
[1729619371261,0.36779481,67311.0,67310.0,0.02590577]
[1729619373428,0.19844883,67311.0,67310.0,0.02590577]
[1729619373661,0.1844,67311.0,67310.0,0.02590577]
[1729619373908,0.18844883,67311.0,67310.0,0.02590577]
[1729619374126,0.18844883,67311.0,67310.0,1.27000577]
[1729619375482,0.1844,67311.0,67310.0,1.27000577]
[1729619375670,0.18844883,67311.0,67310.0,0.02590577]
[1729619376386,0.24749474,67311.0,67310.0,0.02590577]
[1729619376606,0.24749474,67311.0,67310.0,0.02540577]
[1729619379040,0.18844883,67311.0,67310.0,0.02540577]
[1729619379772,0.28844883,67311.0,67310.0,0.02540577]
[1729619387876,0.28744883,67311.0,67310.0,0.002152]
[1729619388320,0.2834,67311.0,67310.0,0.002152]
[1729619388565,0.2834,67311.0,67310.0,0.17149798]
[1729619388566,0.112,67311.0,67310.0,0.17149798]
[1729619388801,0.112,67311.0,67310.0,0.46902313]
[1729619390514,0.1,67311.0,67310.0,0.46802313]
[1729619390725,0.1,67311.0,67310.0,0.29967715]
[1729619390962,0.1,67311.0,67310.0,0.30067715]
[1729619391198,0.1,67311.0,67310.0,0.29967715]
[1729619391431,0.1,67311.0,67310.0,0.46902313]
[1729619391642,0.1,67311.0,67310.0,0.47002313]
[1729619393383,0.1,67311.0,67310.0,0.30067715]
[1729619394956,0.100826,67311.0,67310.0,0.30067715]
[1729619396625,0.100826,67311.0,67310.0,0.57298137]
[1729619396825,0.100826,67311.0,67310.0,0.57398137]
[1729619397054,0.100826,67311.0,67310.0,0.29967715]
[1729619397283,0.100826,67311.0,67310.0,0.30363539]
[1729619397528,0.100826,67311.0,67310.0,0.30062832]
[1729619397772,0.100826,67311.0,67310.0,0.3248806]
[1729619398015,0.100826,67311.0,67310.0,0.3238806]
[1729619398243,0.100826,67311.0,67310.0,0.17397028]
[1729619398461,0.100826,67311.0,67310.0,0.17497028]
[1729619398948,0.100826,67311.0,67310.0,0.17592145]
[1729619399602,0.100826,67311.0,67310.0,0.17492145]
[1729619400046,0.100826,67311.0,67310.0,0.17592145]
[1729619401178,0.100826,67311.0,67310.0,0.17497028]
[1729619409428,0.100826,67311.0,67310.0,0.34431626]
[1729619409656,0.100826,67311.0,67310.0,0.49327541]
[1729619412511,0.100826,67311.0,67310.0,0.32392943]
[1729619412719,0.199826,67311.0,67310.0,0.32392943]
[1729619413382,0.199826,67311.0,67310.0,0.32292943]
[1729619413587,0.199826,67311.0,67310.0,0.32192943]
[1729619413894,0.199826,67311.0,67310.0,0.32392943]
[1729619414621,0.100826,67311.0,67310.0,0.49327541]
[1729619415705,0.100826,67311.0,67310.0,0.17497028]
[1729619416388,0.100826,67311.0,67310.0,0.28347138]
[1729619417704,0.100826,67311.0,67310.0,0.62218987]
[1729619418185,0.100826,67311.0,67310.0,0.43638877]
[1729619420524,0.100826,67311.0,67310.0,0.49744934]
[1729619422509,0.100826,67311.0,67310.0,0.32788767]
[1729619429025,0.050826,67311.0,67310.0,0.32788767]
[1729619429278,0.050826,67311.0,67310.0,0.42788767]
[1729619440467,0.050826,67311.0,67310.0,0.53635841]
[1729619450123,0.050826,67311.0,67310.0,0.42392943]
[1729619450564,0.33359674,67311.0,67310.0,0.17497028]
[1729619450569,0.33359674,67311.0,67310.0,0.02640428]
[1729619450780,0.225126,67311.0,67310.0,0.02640428]
[1729619451000,0.23996153,67311.0,67310.0,0.02640428]
[1729619451221,0.23996153,67311.0,67310.0,0.02540428]
[1729619451688,0.23996153,67311.0,67310.0,0.17497028]
[1729619451902,0.23996153,67311.0,67310.0,0.17397028]
[1729619452129,0.23996153,67311.0,67310.0,0.17297028]
[1729619452381,0.227126,67311.0,67310.0,0.17297028]
[1729619452597,0.24193137,67311.0,67310.0,0.17297028]
[1729619453059,0.23993137,67311.0,67310.0,0.17297028]
[1729619453268,0.23993137,67311.0,67310.0,0.17397028]
[1729619453475,0.23993137,67311.0,67310.0,0.17497028]
[1729619455177,0.23993137,67311.0,67310.0,0.17397028]
[1729619455595,0.23993137,67311.0,67310.0,0.17497028]
[1729619456061,0.23993137,67311.0,67310.0,0.02640428]
[1729619456502,0.225126,67311.0,67310.0,0.02640428]
[1729619456738,0.23991056,67311.0,67310.0,0.17497028]
[1729619456946,0.23991056,67311.0,67310.0,0.17397028]
[1729619458313,0.23991056,67311.0,67310.0,0.17497028]
[1729619458760,0.225126,67311.0,67310.0,0.17297028]
[1729619458969,0.226126,67311.0,67310.0,0.17297028]
[1729619459183,0.24136978,67311.0,67310.0,0.17297028]
[1729619459600,0.24136978,67311.0,67310.0,0.17397028]
[1729619459601,0.24036978,67311.0,67310.0,0.17397028]
[1729619460019,0.24036978,67311.0,67310.0,0.17497028]
[1729619461990,0.24036978,67311.0,67310.0,0.17397028]
[1729619463076,0.50240452,67311.0,67310.0,0.02540428]
[1729619463274,0.51145335,67311.0,67310.0,0.02640428]
[1729619464415,0.25441861,67311.0,67310.0,0.02640428]
[1729619464618,0.25441861,67311.0,67310.0,0.02540428]
[1729619464833,0.24036978,67311.0,67310.0,0.17397028]
[1729619465253,0.24941861,67311.0,67310.0,0.17397028]
[1729619465458,0.24441861,67311.0,67310.0,0.17397028]
[1729619465928,0.25141861,67311.0,67310.0,0.17297028]
[1729619466166,0.24036978,67311.0,67310.0,0.17297028]
[1729619466370,0.24736978,67311.0,67310.0,0.17497028]
[1729619466786,0.24736978,67311.0,67310.0,0.17397028]
[1729619467860,0.24036978,67311.0,67310.0,0.17297028]
[1729619468079,0.24036978,67311.0,67310.0,0.17397028]
[1729619468290,0.24036978,67311.0,67310.0,0.17497028]
[1729619477244,0.23484118,67311.0,67310.0,0.17497028]
[1729619487338,0.23984118,67311.0,67310.0,0.02640428]
[1729619488664,0.23484118,67311.0,67310.0,0.02640428]
[1729619488911,0.23484118,67311.0,67310.0,0.17497028]
[1729619493910,0.23484118,67311.0,67310.0,0.02640428]
[1729619494163,0.23484118,67311.0,67310.0,0.17497028]
[1729619495904,0.06054118,67311.0,67310.0,0.28350164]
[1729619496151,0.05798885,67311.0,67310.0,0.43246079]
[1729619496370,0.050826,67311.0,67310.0,0.72195039]
[1729619496793,0.0579166,67311.0,67310.0,0.72195039]
[1729619496799,0.050826,67311.0,67310.0,0.81137371]
[1729619497055,0.22266425,67323.0,67322.0,0.14949017]
[1729619497327,0.22266425,67323.0,67322.0,0.40998775]
[1729619497571,0.22894829,67323.0,67322.0,0.40998775]
[1729619497826,0.000826,67330.0,67329.0,0.148524]
[1729619499504,0.000826,67330.0,67329.0,0.149524]
[1729619500816,0.000826,67330.0,67329.0,0.150524]
[1729619502371,0.000826,67330.0,67329.0,0.29948315]
[1729619506257,0.000826,67330.0,67329.0,0.150524]
[1729619508119,0.00714615,67330.0,67329.0,0.150524]
[1729619508338,0.000826,67330.0,67329.0,0.150524]
[1729619508550,0.00714615,67330.0,67329.0,0.150524]
[1729619508753,0.000826,67330.0,67329.0,0.150524]
[1729619508962,0.00714615,67330.0,67329.0,0.150524]
[1729619509187,0.000826,67330.0,67329.0,0.150524]
[1729619509407,0.00714615,67330.0,67329.0,0.150524]
[1729619509622,0.000826,67330.0,67329.0,0.150524]
[1729619510053,0.00714615,67330.0,67329.0,0.150524]
[1729619510279,0.000826,67330.0,67329.0,0.150524]
[1729619510496,0.00714615,67330.0,67329.0,0.150524]
[1729619510688,0.000826,67330.0,67329.0,0.150524]
[1729619510906,0.00714615,67330.0,67329.0,0.150524]
[1729619511122,0.000826,67330.0,67329.0,0.150524]
[1729619511356,0.00714682,67330.0,67329.0,0.150524]
[1729619511573,0.000826,67330.0,67329.0,0.150524]
[1729619511831,0.00714682,67330.0,67329.0,0.150524]
[1729619514342,0.10204682,67330.0,67329.0,0.150524]
[1729619528682,0.72797672,67330.0,67329.0,0.002]
[1729619528898,0.16258383,67324.0,67311.0,0.001652]
[1729619529128,0.43211362,67312.0,67311.0,0.001652]
[1729619529336,5.25038511,67312.0,67311.0,0.001652]
[1729619529552,5.25680967,67312.0,67311.0,0.001652]
[1729619529758,0.57276705,67312.0,67311.0,0.001652]
[1729619529982,0.17652456,67312.0,67311.0,0.150216]
[1729619530185,0.18057339,67312.0,67311.0,0.001652]
[1729619530393,0.17652456,67312.0,67311.0,0.001652]
[1729619530630,0.18057339,67312.0,67311.0,0.001652]
[1729619531498,0.18357339,67312.0,67311.0,0.001652]
[1729619531922,0.17952456,67312.0,67311.0,0.001652]
[1729619532159,0.17952456,67312.0,67311.0,0.150216]
[1729619532366,0.17952456,67312.0,67311.0,0.001652]
[1729619532596,0.17952456,67312.0,67311.0,0.150216]
[1729619532814,0.17952456,67312.0,67311.0,0.001652]
[1729619533025,0.19057339,67312.0,67311.0,0.002652]
[1729619533452,0.18357339,67312.0,67311.0,0.001652]
[1729619533855,0.17752456,67312.0,67311.0,0.001652]
[1729619534056,0.17852456,67312.0,67311.0,0.001652]
[1729619534315,0.18257339,67312.0,67311.0,0.001652]
[1729619534548,0.17852456,67312.0,67311.0,0.001652]
[1729619535008,0.18257339,67312.0,67311.0,0.001652]
[1729619535010,0.17852456,67312.0,67311.0,0.001652]
[1729619535215,0.18257339,67312.0,67311.0,0.001652]
[1729619535630,0.21185982,67312.0,67311.0,0.001652]
[1729619536080,0.21185982,67312.0,67311.0,0.150216]
[1729619536081,0.18257339,67312.0,67311.0,0.150216]
[1729619536474,0.17852456,67312.0,67311.0,0.150216]
[1729619536921,0.18257339,67312.0,67311.0,0.150216]
[1729619537627,0.18257339,67312.0,67311.0,0.001652]
[1729619537878,0.18257339,67312.0,67311.0,0.150216]
[1729619537879,0.17614883,67312.0,67311.0,0.150216]
[1729619538122,0.17872181,67312.0,67311.0,0.150216]
[1729619538351,0.1721,67312.0,67311.0,0.150216]
[1729619538775,0.17614883,67312.0,67311.0,0.150216]
[1729619539009,0.17871611,67312.0,67311.0,0.150216]
[1729619539200,0.1721,67312.0,67311.0,0.150216]
[1729619539407,0.1721,67312.0,67311.0,0.130216]
[1729619539591,0.17871611,67312.0,67311.0,0.130216]
[1729619541124,0.17871611,67312.0,67311.0,0.15347169]
[1729619541516,0.17871611,67312.0,67311.0,0.17181969]
[1729619543092,0.21405035,67312.0,67311.0,0.17181969]
[1729619544178,0.17871611,67312.0,67311.0,0.17346969]
[1729619544364,0.17871611,67312.0,67311.0,0.02490569]
[1729619544789,0.17871611,67312.0,67311.0,0.02482965]
[1729619545999,0.17871611,67312.0,67311.0,0.17339365]
[1729619546237,0.17871611,67312.0,67311.0,0.02482965]
[1729619547422,0.38246695,67312.0,67311.0,0.02482965]
[1729619548743,0.23390595,67312.0,67311.0,0.02482965]
[1729619549000,0.38246695,67312.0,67311.0,0.02482965]
[1729619549828,0.23390595,67312.0,67311.0,0.02482965]
[1729619550385,0.38246695,67312.0,67311.0,0.02482965]
[1729619552524,0.4910133,67312.0,67311.0,0.02482965]
[1729619554818,0.3424523,67312.0,67311.0,0.02482965]
[1729619556352,0.4910133,67312.0,67311.0,0.02482965]
[1729619556619,0.4918393,67312.0,67311.0,0.02482965]
[1729619557334,0.3432783,67312.0,67311.0,0.02482965]
[1729619557819,0.5432783,67312.0,67311.0,0.02482965]
[1729619558025,0.6918393,67312.0,67311.0,0.02482965]
[1729619559738,0.5432783,67312.0,67311.0,0.02482965]
[1729619561074,0.6918393,67312.0,67311.0,0.02482965]
[1729619561283,0.876105,67312.0,67311.0,0.00465555]
[1729619561492,5.61579653,67312.0,67311.0,0.00465555]
[1729619561709,5.61579653,67312.0,67307.0,0.00168]
[1729619561710,5.59952387,67312.0,67307.0,0.00168]
[1729619561923,0.5557167,67308.0,67307.0,0.00168]
[1729619562164,0.75762586,67308.0,67307.0,0.00168]
[1729619562385,1.0454086,67308.0,67307.0,0.00168]
[1729619562592,2.9783159,67308.0,67307.0,0.00168]
[1729619562799,4.5626258,67308.0,67307.0,0.00168]
[1729619563038,5.72617495,67308.0,67307.0,0.00168]
[1729619563247,5.72617353,67308.0,67307.0,0.00268]
[1729619563453,5.73617353,67308.0,67307.0,0.00268]
[1729619563660,5.78256549,67308.0,67307.0,0.00268]
[1729619564562,5.68443231,67308.0,67307.0,0.00268]
[1729619564748,5.67443231,67308.0,67307.0,0.00168]
[1729619565432,5.78552816,67308.0,67307.0,0.00168]
[1729619565663,5.79852816,67308.0,67307.0,0.00268]
[1729619566216,5.68743231,67308.0,67307.0,0.00268]
[1729619566419,5.798517,67308.0,67307.0,0.00268]
[1729619566601,5.74930637,67308.0,67307.0,0.00268]
[1729619567011,5.79566514,67308.0,67307.0,0.00268]
[1729619567408,5.74930637,67308.0,67307.0,0.00268]
[1729619568236,5.90620333,67308.0,67307.0,0.00268]
[1729619568437,5.79511864,67308.0,67307.0,0.00268]
[1729619569503,5.80046097,67308.0,67307.0,0.00268]
[1729619569706,5.80046097,67308.0,67289.0,0.150291]
[1729619569707,0.24511,67290.0,67289.0,0.00168]
[1729619569909,5.1184927,67290.0,67289.0,0.00168]
[1729619570113,5.34106404,67290.0,67289.0,0.00168]
[1729619570312,5.3640424,67290.0,67289.0,0.00168]
[1729619570514,5.29542158,67290.0,67289.0,0.00168]
[1729619570774,5.69725261,67290.0,67289.0,0.00168]
[1729619571203,5.69725261,67290.0,67289.0,0.00268]
[1729619571401,5.69721791,67290.0,67289.0,0.00168]
[1729619571823,5.71121791,67290.0,67289.0,0.00268]
[1729619572071,5.69921791,67290.0,67289.0,0.00268]
[1729619572279,5.69921791,67290.0,67289.0,0.00168]
[1729619572500,5.52697884,67290.0,67289.0,0.00168]
[1729619572684,5.55002767,67290.0,67289.0,0.00168]
[1729619572888,5.64732493,67290.0,67289.0,0.00168]
[1729619573349,5.73412685,67290.0,67289.0,0.00168]
[1729619573559,5.83612685,67290.0,67289.0,0.00168]
[1729619573763,5.85587128,67290.0,67289.0,0.00168]
[1729619573971,5.74732493,67290.0,67289.0,0.00168]
[1729619574180,5.79358036,67290.0,67289.0,0.00168]
[1729619574451,0.49529184,67276.0,67275.0,0.22266425]
[1729619574681,0.60427622,67276.0,67275.0,0.22266425]
[1729619574887,0.60427622,67276.0,67270.0,0.00095117]
[1729619574888,0.005,67272.0,67270.0,0.00095117]
[1729619575097,0.00696411,67271.0,67270.0,0.00095117]
[1729619575726,0.00696411,67271.0,67270.0,0.14960517]
[1729619575933,0.00696411,67271.0,67266.0,0.297323]
[1729619576134,0.00696411,67271.0,67270.0,0.00095117]
[1729619576357,0.00696411,67271.0,67270.0,0.14960517]
[1729619576567,0.00696411,67271.0,67270.0,0.00095117]
[1729619577228,0.07308814,67271.0,67264.0,0.29828517]
[1729619577444,0.07308814,67271.0,67265.0,0.29828217]
[1729619577445,0.16985084,67270.0,67265.0,0.29828217]
[1729619577643,0.16985084,67270.0,67266.0,0.148663]
[1729619577798,0.16985084,67270.0,67257.0,0.00300707]
[1729619577799,0.1718,67266.0,67264.0,0.00095117]